bitfinex/quotes_BTCUSD_20240703
["timestamp","ask_amount","ask_price","bid_price","bid_amount"]
[1719975430768,1.95235692,61410.0,61409.0,0.016924]
[1719975431135,1.95235692,61410.0,61409.0,0.009924]
[1719975431641,1.95335692,61410.0,61409.0,0.009924]
[1719975431874,1.95335692,61410.0,61409.0,0.000924]
[1719975432417,1.80003386,61410.0,61409.0,0.000924]
[1719975432550,1.80103386,61410.0,61409.0,0.001924]
[1719975432894,1.81964279,61410.0,61409.0,0.002924]
[1719975433439,1.69324279,61410.0,61409.0,0.002924]
[1719975433664,1.8551557,61410.0,61409.0,0.001924]
[1719975433862,1.75764279,61410.0,61409.0,0.001924]
[1719975434095,1.69500071,61410.0,61409.0,0.001924]
[1719975434297,1.62860071,61410.0,61409.0,0.001924]
[1719975434452,1.62860071,61410.0,61409.0,0.002924]
[1719975434453,1.69700071,61410.0,61409.0,0.002924]
[1719975434858,1.69500071,61410.0,61409.0,0.001924]
[1719975435278,1.69500071,61410.0,61409.0,0.000924]
[1719975435465,1.69200071,61410.0,61409.0,0.000924]
[1719975435644,1.6778149,61410.0,61409.0,0.001924]
[1719975435845,1.6932814,61410.0,61409.0,0.001924]
[1719975436280,1.6818149,61410.0,61409.0,0.001924]
[1719975436491,1.69528339,61410.0,61409.0,0.001924]
[1719975437206,1.68928339,61410.0,61409.0,0.000924]
[1719975437552,1.75128339,61410.0,61409.0,0.000924]
[1719975438086,1.74928339,61410.0,61409.0,0.000924]
[1719975438409,1.91321907,61410.0,61409.0,0.001924]
[1719975438587,1.74928339,61410.0,61409.0,0.003924]
[1719975439029,1.74928557,61410.0,61409.0,0.003924]
[1719975439199,1.91319854,61410.0,61409.0,0.003924]
[1719975439381,1.74928557,61410.0,61409.0,0.003924]
[1719975441006,2.38731747,61410.0,61409.0,0.003924]
[1719975441226,2.32091747,61410.0,61409.0,0.003924]
[1719975441404,2.38731747,61410.0,61409.0,0.003924]
[1719975441597,2.38731747,61410.0,61409.0,0.002924]
[1719975441803,2.38731747,61410.0,61409.0,0.000924]
[1719975442016,2.31701976,61410.0,61409.0,0.000924]
[1719975442377,2.31701976,61410.0,61409.0,0.002924]
[1719975442378,2.32101976,61410.0,61409.0,0.002924]
[1719975442524,2.32101976,61410.0,61409.0,0.001924]
[1719975442525,2.38990218,61410.0,61409.0,0.001924]
[1719975443072,2.39190218,61410.0,61409.0,0.002924]
[1719975443279,2.23153912,61410.0,61409.0,0.002924]
[1719975443751,2.22953912,61410.0,61409.0,0.001924]
[1719975444273,2.23153912,61410.0,61409.0,0.002924]
[1719975445884,2.3952876,61410.0,61409.0,0.002924]
[1719975446384,2.23153912,61410.0,61409.0,0.002924]
[1719975446546,2.17412654,61410.0,61409.0,0.002924]
[1719975447357,2.17312654,61410.0,61409.0,0.002924]
[1719975448607,2.39326449,61410.0,61409.0,0.002924]
[1719975448951,2.1586567,61410.0,61409.0,0.002924]
[1719975449079,2.39331747,61410.0,61409.0,0.002924]
[1719975450365,1.75128596,61410.0,61409.0,0.002924]
[1719975451113,1.75028596,61410.0,61409.0,0.002924]
[1719975451705,1.75028842,61410.0,61409.0,0.002924]
[1719975452128,1.74928842,61410.0,61409.0,0.002924]
[1719975452695,1.74928842,61410.0,61409.0,0.000924]
[1719975452696,1.74528842,61410.0,61409.0,0.000924]
[1719975452904,1.7318149,61410.0,61409.0,0.000924]
[1719975453133,1.74728926,61410.0,61409.0,0.001924]
[1719975453343,1.74928926,61410.0,61409.0,0.002924]
[1719975453547,1.74728665,61410.0,61409.0,0.001924]
[1719975453771,1.74728665,61410.0,61409.0,0.002924]
[1719975453772,1.73110089,61410.0,61409.0,0.002924]
[1719975453974,1.73310089,61410.0,61409.0,0.002924]
[1719975454446,1.46386054,61410.0,61409.0,0.001924]
[1719975454656,0.95575789,61410.0,61409.0,0.000924]
[1719975454874,1.02615789,61410.0,61409.0,0.000924]
[1719975455079,1.08106921,61410.0,61409.0,0.000924]
[1719975455286,1.1474724,61410.0,61409.0,0.000924]
[1719975455510,1.14747444,61410.0,61409.0,0.000924]
[1719975455713,1.14547444,61410.0,61409.0,0.000924]
[1719975456315,1.14347444,61410.0,61409.0,0.000924]
[1719975457111,1.14347444,61410.0,61409.0,0.001924]
[1719975457338,1.02215877,61410.0,61409.0,0.001924]
[1719975457541,1.02215877,61410.0,61409.0,0.003924]
[1719975458334,1.00868614,61410.0,61409.0,0.003924]
[1719975458505,1.02215943,61410.0,61409.0,0.003924]
[1719975460158,0.76161643,61410.0,61409.0,0.1642228]
[1719975460541,0.85871434,61410.0,61409.0,0.1642228]
[1719975460964,0.7069372,61410.0,61409.0,0.1642228]
[1719975461628,0.726639,61410.0,61409.0,0.1642228]
[1719975461855,0.8372362,61410.0,61409.0,0.1642228]
[1719975462093,0.726639,61410.0,61409.0,0.1642228]
[1719975462308,0.79948543,61410.0,61409.0,0.1642228]
[1719975462922,0.726639,61410.0,61409.0,0.1642228]
[1719975463498,0.82376015,61410.0,61409.0,0.1642228]
[1719975464249,0.75736015,61410.0,61409.0,0.1642228]
[1719975464450,0.82376015,61410.0,61409.0,0.1642228]
[1719975464650,0.726639,61410.0,61409.0,0.1642228]
[1719975465062,0.82378707,61410.0,61409.0,0.1642228]
[1719975465882,0.79952277,61410.0,61409.0,0.1642228]
[1719975466501,0.726639,61410.0,61409.0,0.1642228]
[1719975466835,0.79952126,61410.0,61409.0,0.1642228]
[1719975467256,0.726639,61410.0,61409.0,0.1642228]
[1719975468582,0.82378707,61410.0,61409.0,0.1642228]
[1719975468719,0.726639,61410.0,61409.0,0.1642228]
[1719975469389,0.82378707,61410.0,61409.0,0.1642228]
[1719975470424,0.65137,61409.0,61408.0,0.1259]
[1719975470623,0.74977064,61409.0,61408.0,0.30235884]
[1719975470831,0.67687701,61409.0,61408.0,0.30235884]
[1719975471878,0.67687701,61409.0,61408.0,0.30535884]
[1719975472035,0.7497767,61409.0,61408.0,0.30535884]
[1719975472242,0.7497767,61409.0,61408.0,0.30735884]
[1719975472665,0.67687701,61409.0,61408.0,0.2911988]
[1719975473038,0.74977888,61409.0,61408.0,0.2911988]
[1719975473431,0.67687701,61409.0,61408.0,0.2911988]
[1719975473637,0.7740724,61409.0,61408.0,0.2911988]
[1719975474468,0.7740737,61409.0,61408.0,0.2911988]
[1719975475336,0.67687701,61409.0,61408.0,0.2911988]
[1719975475913,0.7740737,61409.0,61408.0,0.2911988]
[1719975476795,0.67687701,61409.0,61408.0,0.1652988]
[1719975477013,1.3108217,61409.0,61408.0,0.005]
[1719975477215,1.22710458,61409.0,61408.0,0.005]
[1719975477531,1.21362501,61409.0,61408.0,0.005]
[1719975477763,1.22710243,61409.0,61408.0,0.005]
[1719975477987,1.22710119,61409.0,61408.0,0.002]
[1719975478389,1.22710119,61409.0,61408.0,0.009]
[1719975478590,0.651455,61401.0,61400.0,0.1153]
[1719975478790,0.74336201,61401.0,61400.0,0.29175884]
[1719975479176,1.00394401,61401.0,61400.0,0.01616004]
[1719975479538,1.07680866,61401.0,61400.0,0.01616004]
[1719975480151,1.00394401,61401.0,61400.0,0.01616004]
[1719975480571,1.00394401,61401.0,61400.0,0.02716004]
[1719975481005,1.00394401,61401.0,61400.0,0.04116004]
[1719975481183,1.00394401,61401.0,61400.0,0.02716004]
[1719975481488,1.00394401,61401.0,61400.0,0.03916004]
[1719975482974,0.97491221,61401.0,61400.0,0.03916004]
[1719975483860,0.97491221,61401.0,61400.0,0.023]
[1719975484265,1.04777346,61401.0,61400.0,0.023]
[1719975485125,0.98137346,61401.0,61400.0,0.023]
[1719975485447,1.04777346,61401.0,61400.0,0.023]
[1719975486409,0.97491221,61401.0,61400.0,0.023]
[1719975486629,1.04778616,61401.0,61400.0,0.023]
[1719975487114,1.0477886,61401.0,61400.0,0.023]
[1719975487622,0.7872066,61401.0,61400.0,0.1832988]
[1719975487835,0.7208066,61401.0,61400.0,0.1832988]
[1719975488002,0.7872066,61401.0,61400.0,0.1832988]
[1719975489291,0.71433021,61401.0,61400.0,0.1832988]
[1719975491560,0.81149874,61401.0,61400.0,0.1832988]
[1719975491966,0.81149874,61401.0,61400.0,0.1842228]
[1719975492604,0.48451674,61401.0,61400.0,0.1842228]
[1719975494343,0.4846136,61401.0,61400.0,0.1842228]
[1719975495349,0.38734821,61401.0,61400.0,0.1842228]
[1719975495679,0.02550701,61401.0,61400.0,0.1842228]
[1719975495878,0.02550701,61401.0,61400.0,0.53565755]
[1719975495879,0.09846263,61401.0,61400.0,0.53565755]
[1719975496106,0.02550701,61401.0,61400.0,0.4757228]
[1719975496638,0.02550701,61401.0,61400.0,0.53565755]
[1719975497375,0.09846263,61401.0,61400.0,0.53565755]
[1719975497494,0.02550701,61401.0,61400.0,0.53565755]
[1719975497696,0.02550701,61401.0,61400.0,0.92653655]
[1719975498049,0.09727417,61405.0,61404.0,0.05993475]
[1719975498050,0.07295562,61405.0,61404.0,0.05993475]
[1719975498282,0.22755317,61407.0,61405.0,0.05993475]
[1719975498547,0.02550624,61406.0,61405.0,0.05993475]
[1719975498757,0.02550624,61406.0,61405.0,0.08293475]
[1719975499549,0.02550624,61406.0,61405.0,0.24323355]
[1719975499769,0.02550624,61406.0,61405.0,0.24923355]
[1719975499922,0.02550624,61406.0,61405.0,0.24323355]
[1719975500328,0.02550624,61406.0,61405.0,0.25723355]
[1719975500329,0.12281095,61406.0,61405.0,0.25723355]
[1719975500729,0.02550624,61406.0,61405.0,0.25723355]
[1719975500953,0.02550624,61406.0,61405.0,0.92993741]
[1719975501151,0.02550624,61406.0,61405.0,1.19050241]
[1719975501370,0.07299632,61408.0,61407.0,0.05993475]
[1719975501571,0.07299632,61409.0,61408.0,0.05993475]
[1719975501770,0.09850097,61409.0,61408.0,0.24323355]
[1719975501979,0.09850097,61409.0,61408.0,0.1832988]
[1719975502186,0.09849586,61409.0,61408.0,0.1832988]
[1719975502627,0.09848738,61409.0,61408.0,0.1832988]
[1719975502982,0.22876138,61409.0,61408.0,0.1952988]
[1719975503198,0.15577865,61409.0,61408.0,0.1952988]
[1719975503605,0.67687465,61409.0,61408.0,0.1722988]
[1719975504037,0.41632665,61409.0,61408.0,0.1722988]
[1719975504439,0.41632665,61409.0,61408.0,0.1832988]
[1719975505385,0.51362293,61409.0,61408.0,0.1832988]
[1719975505895,0.41632665,61409.0,61408.0,0.1832988]
[1719975506414,0.48929667,61409.0,61408.0,0.1832988]
[1719975506613,0.09847467,61409.0,61408.0,0.4812988]
[1719975506814,0.22874867,61409.0,61408.0,0.4812988]
[1719975507396,0.15577865,61409.0,61408.0,0.54123355]
[1719975509985,0.02550465,61409.0,61408.0,0.54123355]
[1719975510180,0.00888,61410.0,61409.0,0.05993475]
[1719975510414,0.00888,61410.0,61409.0,0.26265011]
[1719975510737,0.00888,61410.0,61409.0,0.38525011]
[1719975510969,0.00888,61410.0,61409.0,0.53255011]
[1719975511367,0.00888,61410.0,61409.0,0.54255011]
[1719975512150,0.00888,61410.0,61409.0,0.55355011]
[1719975512788,0.00888,61410.0,61409.0,0.68382411]
[1719975512991,0.00888,61410.0,61409.0,0.75022411]
[1719975513352,0.00888,61410.0,61409.0,0.74696759]
[1719975514696,0.00888,61410.0,61409.0,0.55029359]
[1719975515330,0.00888,61410.0,61409.0,0.53413355]
[1719975518026,0.00888,61410.0,61409.0,0.66440755]
[1719975518439,0.00888,61410.0,61409.0,1.48550355]
[1719975518787,0.00888,61410.0,61409.0,1.78550355]
[1719975519357,0.00888,61410.0,61409.0,1.77450355]
[1719975519743,0.00888,61410.0,61409.0,2.04905155]
[1719975519975,0.00888,61410.0,61409.0,1.47450355]
[1719975520175,0.00888,61410.0,61409.0,1.55490355]
[1719975520378,0.00888,61410.0,61409.0,1.54490355]
[1719975520774,0.00888,61410.0,61409.0,1.55490355]
[1719975521349,0.00888,61410.0,61409.0,1.54490355]
[1719975521696,0.00888,61410.0,61409.0,1.55890355]
[1719975522731,0.00888,61410.0,61409.0,1.85890355]
[1719975523909,0.00888,61410.0,61409.0,1.55890355]
[1719975524110,0.00888,61410.0,61409.0,0.27123355]
[1719975524258,0.00888,61410.0,61409.0,0.53410755]
[1719975524659,0.00888,61410.0,61409.0,0.69470755]
[1719975529567,0.00888,61410.0,61409.0,1.25525555]
[1719975529972,0.00888,61410.0,61409.0,0.95525555]
[1719975531098,0.00888,61410.0,61409.0,1.25525555]
[1719975531938,0.00888,61410.0,61409.0,1.81580355]
[1719975532297,0.00888,61410.0,61409.0,1.51580355]
[1719975532473,0.00888,61410.0,61409.0,1.88220355]
[1719975532874,0.00888,61410.0,61409.0,1.58220355]
[1719975533415,0.00888,61410.0,61409.0,1.28220355]
[1719975533762,0.00888,61410.0,61409.0,1.58220355]
[1719975534004,0.00888,61410.0,61409.0,1.88220355]
[1719975534576,0.00888,61410.0,61409.0,1.58220355]
[1719975534980,0.00888,61410.0,61409.0,1.88220355]
[1719975543240,0.00888,61410.0,61409.0,2.14275155]
[1719975543439,0.00888,61410.0,61409.0,2.24275155]
[1719975545850,0.00888,61410.0,61409.0,2.17635155]
[1719975546050,0.00888,61410.0,61409.0,2.24275155]
[1719975549982,0.00888,61410.0,61409.0,2.17635155]
[1719975550184,0.00888,61410.0,61409.0,2.24275155]
[1719975550643,0.00888,61410.0,61409.0,2.17635155]
[1719975550851,0.00888,61410.0,61409.0,2.24275155]
[1719975551300,0.00084,61410.0,61409.0,2.24275155]
[1719975551935,0.00084,61410.0,61409.0,2.44275155]
[1719975552235,0.00084,61410.0,61409.0,2.70329955]
[1719975552636,0.00084,61410.0,61409.0,2.75159955]
[1719975552798,0.00084,61410.0,61409.0,2.68519955]
[1719975553006,0.00084,61410.0,61409.0,2.75159955]
[1719975553325,0.00084,61410.0,61409.0,2.49105155]
[1719975554812,0.00084,61410.0,61409.0,2.42465155]
[1719975555012,0.00084,61410.0,61409.0,1.57090355]
[1719975555213,0.00084,61410.0,61409.0,1.93730355]
[1719975561380,0.03062684,61416.0,61415.0,0.05993475]
[1719975561591,0.03062684,61416.0,61415.0,0.37349455]
[1719975561796,0.03062684,61416.0,61415.0,0.47349455]
[1719975562601,0.03062684,61416.0,61415.0,0.48749455]
[1719975562958,0.03062684,61416.0,61415.0,0.50149455]
[1719975563555,0.03062684,61416.0,61415.0,0.37123355]
[1719975563750,0.05612775,61416.0,61415.0,0.38739359]
[1719975564110,0.03062684,61416.0,61415.0,0.38739359]
[1719975564531,0.18532684,61416.0,61415.0,0.38739359]
[1719975565806,0.1547,61416.0,61415.0,0.38739359]
[1719975566018,0.1284,61418.0,61417.0,0.05993475]
[1719975566210,0.1284,61418.0,61417.0,0.24323355]
[1719975566637,0.15389993,61418.0,61417.0,0.24323355]
[1719975568058,0.02549993,61418.0,61417.0,0.24323355]
[1719975568369,0.02549993,61418.0,61417.0,0.25723355]
[1719975568777,0.02549993,61418.0,61417.0,0.24323355]
[1719975569281,0.02549993,61418.0,61417.0,0.27123355]
[1719975569660,0.02549993,61418.0,61417.0,0.25723355]
[1719975569881,0.02549993,61418.0,61417.0,0.28523355]
[1719975570888,0.02549993,61418.0,61417.0,0.41549055]
[1719975571263,0.02549993,61418.0,61417.0,1.04240455]
[1719975571601,0.00839,61419.0,61418.0,0.99280675]
[1719975571834,0.00839,61419.0,61418.0,1.19226559]
[1719975572553,0.00839,61419.0,61418.0,0.93175659]
[1719975572764,0.03388904,61419.0,61418.0,0.38964759]
[1719975572972,0.00839,61419.0,61418.0,0.42603759]
[1719975573598,0.00839,61419.0,61418.0,0.40987755]
[1719975573795,0.0338887,61419.0,61418.0,0.67038655]
[1719975574005,0.00839,61419.0,61418.0,0.67038655]
[1719975574415,0.03388866,61419.0,61418.0,0.67038655]
[1719975577699,0.00839,61419.0,61418.0,0.67038655]
[1719975586065,0.00839,61419.0,61418.0,0.97038655]
[1719975586533,0.00839,61419.0,61418.0,0.67038655]
[1719975586775,0.00839,61419.0,61418.0,0.82128655]
[1719975587657,0.03388867,61419.0,61418.0,1.12128655]
[1719975587851,0.03388867,61419.0,61418.0,0.82128655]
[1719975589076,0.00839,61419.0,61418.0,0.82128655]
[1719975589609,0.00839,61419.0,61418.0,1.12128655]
[1719975590352,0.00839,61419.0,61418.0,0.82128655]
[1719975591305,0.00839,61419.0,61418.0,1.12128655]
[1719975591518,0.00839,61419.0,61418.0,0.82128655]
[1719975591721,0.00839,61419.0,61418.0,1.12128655]
[1719975592852,0.00839,61419.0,61418.0,1.08179555]
[1719975593093,0.00839,61419.0,61418.0,1.51269555]
[1719975593312,0.00839,61419.0,61418.0,1.21269555]
[1719975594157,0.00839,61419.0,61418.0,0.67038655]
[1719975595406,0.00839,61419.0,61418.0,0.6104518]
[1719975595625,0.03388898,61419.0,61418.0,0.2196888]
[1719975595826,0.43944098,61419.0,61418.0,0.2112988]
[1719975596030,0.53674676,61419.0,61418.0,0.2112988]
[1719975596313,0.43944098,61419.0,61418.0,0.2112988]
[1719975596953,1.02685098,61419.0,61418.0,0.1882988]
[1719975597154,1.30081386,61419.0,61418.0,0.1882988]
[1719975597612,1.30081386,61419.0,61418.0,0.1742988]
[1719975597865,1.30081386,61419.0,61418.0,0.1602988]
[1719975598063,1.30081386,61419.0,61418.0,0.1742988]
[1719975598424,1.28735598,61419.0,61418.0,0.1742988]
[1719975598623,1.02685098,61419.0,61418.0,0.1882988]
[1719975599369,0.96045098,61419.0,61418.0,0.1882988]
[1719975600070,0.53664383,61419.0,61418.0,0.1882988]
[1719975600320,0.03388898,61419.0,61418.0,0.27123355]
[1719975600701,0.00839,61419.0,61418.0,0.27123355]
[1719975601296,0.00739,61419.0,61418.0,0.27123355]
[1719975601504,0.00739,61419.0,61418.0,0.2112988]
[1719975601757,0.30588967,61419.0,61418.0,0.2112988]
[1719975601905,0.37880638,61419.0,61418.0,0.2112988]
[1719975602110,0.10580509,61419.0,61418.0,0.2112988]
[1719975602698,0.16314167,61419.0,61418.0,0.2112988]
[1719975602963,0.86386724,61419.0,61418.0,0.2112988]
[1719975603165,0.76664667,61419.0,61418.0,0.2112988]
[1719975603292,0.70024667,61419.0,61418.0,0.2112988]
[1719975603494,0.70010209,61419.0,61418.0,0.2112988]
[1719975603699,0.69910209,61419.0,61418.0,0.2112988]
[1719975603895,0.79631249,61419.0,61418.0,0.2112988]
[1719975604121,0.51150186,61419.0,61418.0,0.2112988]
[1719975604466,0.23490186,61419.0,61418.0,0.2112988]
[1719975604843,0.23490008,61419.0,61418.0,0.2112988]
[1719975605159,0.10464808,61419.0,61418.0,0.27123355]
[1719975605397,0.03174509,61419.0,61418.0,0.27123355]
[1719975605597,0.03174509,61419.0,61418.0,0.2112988]
[1719975606494,0.03978509,61419.0,61418.0,0.2112988]
[1719975608476,0.03978509,61419.0,61418.0,0.1834108]
[1719975608477,0.52282416,61419.0,61418.0,0.1834108]
[1719975608687,0.61330062,61419.0,61418.0,0.1834108]
[1719975609779,1.00405762,61419.0,61418.0,0.1834108]
[1719975610001,1.68856535,61419.0,61418.0,0.1834108]
[1719975610433,1.61566262,61419.0,61418.0,0.1834108]
[1719975610610,1.68858658,61419.0,61418.0,0.1834108]
[1719975610812,1.61566262,61419.0,61418.0,0.1834108]
[1719975611013,1.68858358,61419.0,61418.0,0.1834108]
[1719975611538,1.54926262,61419.0,61418.0,0.1834108]
[1719975611737,1.64649062,61419.0,61418.0,0.1834108]
[1719975611893,1.61566262,61419.0,61418.0,0.1604108]
[1719975613042,1.71288903,61419.0,61418.0,0.1604108]
[1719975613612,1.61566262,61419.0,61418.0,0.1604108]
[1719975613812,1.73718326,61419.0,61418.0,0.1604108]
[1719975613998,1.61566262,61419.0,61418.0,0.1604108]
[1719975615131,1.54926262,61419.0,61418.0,0.1604108]
[1719975615453,1.71286943,61419.0,61418.0,0.1604108]
[1719975616069,1.61566262,61419.0,61418.0,0.1604108]
[1719975616283,1.71286831,61419.0,61418.0,0.1604108]
[1719975617291,1.64646831,61419.0,61418.0,0.1604108]
[1719975617583,1.61566262,61419.0,61418.0,0.1604108]
[1719975617782,1.71286427,61419.0,61418.0,0.1604108]
[1719975618167,1.97336927,61419.0,61418.0,0.1604108]
[1719975618375,1.87616762,61419.0,61418.0,0.1604108]
[1719975621148,1.87616762,61419.0,61418.0,0.1613348]
[1719975621716,1.99767517,61419.0,61418.0,0.028924]
[1719975621894,1.87616762,61419.0,61418.0,0.028924]
[1719975625237,2.35703568,61419.0,61418.0,0.028924]
[1719975625840,2.52101582,61419.0,61418.0,0.028924]
[1719975626048,2.78152082,61419.0,61418.0,0.028924]
[1719975626244,2.78141057,61419.0,61418.0,0.014924]
[1719975626695,2.78141057,61419.0,61418.0,0.021924]
[1719975626897,2.78140823,61419.0,61418.0,0.021924]
[1719975627282,2.78140823,61419.0,61418.0,0.007924]
[1719975627461,2.61754068,61419.0,61418.0,0.007924]
[1719975627663,2.61754068,61419.0,61418.0,0.016924]
[1719975627866,2.55114068,61419.0,61418.0,0.000924]
[1719975628085,2.61754068,61419.0,61418.0,0.000924]
[1719975628296,2.62054068,61419.0,61418.0,0.000924]
[1719975628678,2.61954068,61419.0,61418.0,0.000924]
[1719975629137,2.62154068,61419.0,61418.0,0.000924]
[1719975632376,2.46117762,61419.0,61418.0,0.000924]
[1719975635256,2.6066184,61419.0,61418.0,0.000924]
[1719975636486,2.46117762,61419.0,61418.0,0.000924]
[1719975636784,2.60659459,61419.0,61418.0,0.000924]
[1719975637237,2.60659739,61419.0,61418.0,0.000924]
[1719975637408,2.76696045,61419.0,61418.0,0.000924]
[1719975637951,2.60659739,61419.0,61418.0,0.000924]
[1719975639772,2.60655707,61419.0,61418.0,0.000924]
[1719975640421,2.46117762,61419.0,61418.0,0.000924]
[1719975641767,2.76117762,61419.0,61418.0,0.000924]
[1719975642043,0.97196,61406.0,61405.0,0.08015582]
[1719975642206,0.390847,61405.0,61404.0,0.4676]
[1719975642411,1.01015139,61405.0,61404.0,0.01616004]
[1719975642941,0.87986881,61405.0,61404.0,0.01616004]
[1719975643741,1.01015081,61405.0,61404.0,0.01616004]
[1719975644122,1.01015081,61405.0,61404.0,0.02916004]
[1719975644335,0.93747667,61405.0,61404.0,0.02916004]
[1719975645691,0.93747667,61405.0,61404.0,0.04016004]
[1719975646287,0.99747667,61405.0,61404.0,0.04016004]
[1719975646698,1.25804167,61405.0,61404.0,0.04016004]
[1719975647463,1.25804167,61405.0,61404.0,0.024]
[1719975648081,1.19804167,61405.0,61404.0,0.024]
[1719975652354,1.25804167,61405.0,61404.0,0.024]
[1719975652532,1.49465182,61405.0,61404.0,0.024]
[1719975652731,1.5188552,61405.0,61404.0,0.024]
[1719975653176,1.42204167,61405.0,61404.0,0.024]
[1719975653380,1.54484167,61405.0,61404.0,0.024924]
[1719975653551,1.6658507,61405.0,61404.0,0.024924]
[1719975654182,1.0584857,61405.0,61404.0,0.300324]
[1719975654524,1.00387667,61405.0,61404.0,0.024924]
[1719975654729,1.10067754,61405.0,61404.0,0.011924]
[1719975655111,1.07648463,61405.0,61404.0,0.007924]
[1719975655341,1.00387667,61405.0,61404.0,0.007924]
[1719975655563,1.00387667,61405.0,61404.0,0.013924]
[1719975655782,1.10067754,61405.0,61404.0,0.013924]
[1719975655949,1.00387667,61405.0,61404.0,0.013924]
[1719975656181,1.10067754,61405.0,61404.0,0.013924]
[1719975656305,1.07649053,61405.0,61404.0,0.013924]
[1719975657795,0.93747667,61405.0,61404.0,0.013924]
[1719975657912,1.00387667,61405.0,61404.0,0.013924]
[1719975659062,1.07650264,61405.0,61404.0,0.013924]
[1719975659222,1.00387667,61405.0,61404.0,0.013924]
[1719975660644,1.07651435,61405.0,61404.0,0.013924]
[1719975661271,1.07652445,61405.0,61404.0,0.013924]
[1719975661470,1.07652438,61405.0,61404.0,0.013924]
[1719975661844,1.00387667,61405.0,61404.0,0.013924]
[1719975662126,1.07653396,61405.0,61404.0,0.013924]
[1719975662615,1.00387667,61405.0,61404.0,0.013924]
[1719975662817,1.07654912,61405.0,61404.0,0.013924]
[1719975663557,1.07606056,61405.0,61404.0,0.013924]
[1719975663716,1.09998765,61405.0,61404.0,0.013924]
[1719975663899,1.00311126,61405.0,61404.0,0.013924]
[1719975664230,0.02549967,61405.0,61404.0,0.4734228]
[1719975664648,0.0255056,61407.0,61405.0,0.2762]
[1719975664848,0.130278,61407.0,61406.0,0.51665462]
[1719975665049,0.15578378,61407.0,61406.0,0.51665462]
[1719975666217,0.15578378,61407.0,61406.0,0.52165462]
[1719975666620,0.15578378,61407.0,61406.0,0.52565462]
[1719975667435,0.02550578,61407.0,61406.0,0.52565462]
[1719975667650,0.02550578,61408.0,61406.0,0.27245462]
[1719975667868,0.07271244,61410.0,61406.0,0.55285462]
[1719975667869,0.02550578,61407.0,61406.0,0.55285462]
[1719975668074,0.130274,61409.0,61407.0,0.2804]
[1719975668307,0.130274,61409.0,61408.0,0.4406988]
[1719975668511,0.15577899,61409.0,61408.0,0.4406988]
[1719975669687,0.02550499,61409.0,61408.0,0.4406988]
[1719975669885,0.20298344,61411.0,61408.0,0.1832988]
[1719975670089,0.02550494,61410.0,61409.0,0.2769]
[1719975670284,0.02550494,61410.0,61409.0,0.4371988]
[1719975670760,0.09833284,61410.0,61409.0,0.4371988]
[1719975670980,0.02550494,61410.0,61409.0,0.4371988]
[1719975671217,0.02550494,61410.0,61409.0,0.4601988]
[1719975672532,0.02550494,61410.0,61409.0,0.4741988]
[1719975673261,0.02550494,61410.0,61409.0,0.4871988]
[1719975674108,0.02550494,61411.0,61410.0,0.05993475]
[1719975674251,0.07284905,61416.0,61411.0,0.2853]
[1719975674450,0.15576397,61415.0,61412.0,0.1602988]
[1719975674655,0.02550197,61414.0,61413.0,0.023]
[1719975674857,0.02550197,61414.0,61413.0,0.1832988]
[1719975675080,0.130262,61415.0,61413.0,0.1832988]
[1719975675279,0.130262,61415.0,61414.0,0.1602988]
[1719975675505,0.15576485,61415.0,61414.0,0.1832988]
[1719975676295,0.130262,61415.0,61414.0,0.1832988]
[1719975676673,0.196659,61417.0,61414.0,0.1832988]
[1719975676874,0.130259,61416.0,61414.0,0.1832988]
[1719975677083,0.130259,61416.0,61414.0,0.1922988]
[1719975677682,0.0664,61417.0,61414.0,0.1922988]
[1719975677911,0.130261,61415.0,61414.0,0.2022988]
[1719975678183,0.130261,61415.0,61414.0,0.1832988]
[1719975678585,0.130261,61415.0,61414.0,0.1972988]
[1719975679022,0.130261,61415.0,61414.0,0.1892988]
[1719975679224,0.130261,61415.0,61414.0,0.1932988]
[1719975679431,0.130261,61415.0,61414.0,0.2022988]
[1719975681674,0.72412884,61415.0,61414.0,0.03516004]
[1719975681875,0.74320945,61415.0,61414.0,0.03516004]
[1719975682406,0.717705,61415.0,61414.0,0.03516004]
[1719975682614,0.74320963,61415.0,61414.0,0.03516004]
[1719975683311,0.74320963,61415.0,61414.0,0.019]
[1719975683773,0.717705,61415.0,61414.0,0.019]
[1719975685672,0.651305,61415.0,61414.0,0.019]
[1719975686267,0.652145,61415.0,61414.0,0.019]
[1719975687241,0.652145,61415.0,61414.0,0.1792988]
[1719975687242,0.00084,61415.0,61414.0,0.1792988]
[1719975687388,0.00084,61415.0,61414.0,0.3316988]
[1719975688780,0.131101,61415.0,61414.0,0.3316988]
[1719975689208,0.131101,61415.0,61414.0,0.3159048]
[1719975690366,0.131101,61415.0,61414.0,0.4348048]
[1719975691442,0.00084,61415.0,61414.0,0.4348048]
[1719975692704,0.00084,61415.0,61414.0,0.4578048]
[1719975692900,0.00084,61415.0,61414.0,0.66822362]
[1719975693325,0.00084,61415.0,61414.0,0.72815837]
[1719975693537,0.00084,61415.0,61414.0,0.66822362]
[1719975693703,0.00084,61415.0,61414.0,0.98868437]
[1719975694213,0.00084,61415.0,61414.0,0.92874962]
[1719975694396,0.00084,61415.0,61414.0,0.98868437]
[1719975695001,0.00084,61415.0,61414.0,1.24921037]
[1719975698525,0.00084,61415.0,61414.0,1.31561037]
[1719975699962,0.00084,61415.0,61414.0,1.61561037]
[1719975702217,0.00084,61415.0,61414.0,1.87613637]
[1719975702641,0.00084,61415.0,61414.0,1.57613637]
[1719975703687,0.00084,61415.0,61414.0,1.87613637]
[1719975703889,0.00084,61415.0,61414.0,1.57613637]
[1719975710015,0.00084,61415.0,61414.0,1.87613637]
[1719975710625,0.00084,61415.0,61414.0,2.17613637]
[1719975710797,0.00084,61415.0,61414.0,2.27613637]
[1719975711646,0.00084,61415.0,61414.0,2.27293037]
[1719975712426,0.00184,61415.0,61414.0,2.28693037]
[1719975712621,0.00184,61415.0,61414.0,2.30093037]
[1719975712622,0.00284,61415.0,61414.0,2.30093037]
[1719975712823,0.00184,61415.0,61414.0,2.28693037]
[1719975713163,0.00284,61415.0,61414.0,2.30093037]
[1719975713593,0.00284,61415.0,61414.0,2.22077455]
[1719975713848,0.00184,61415.0,61414.0,2.20677455]
[1719975714061,0.00184,61415.0,61414.0,1.27984855]
[1719975714426,0.00184,61415.0,61414.0,1.54037455]
[1719975714830,0.28324,61415.0,61414.0,0.1882988]
[1719975715283,0.28224,61415.0,61414.0,0.1602988]
[1719975715693,0.28324,61415.0,61414.0,0.1882988]
[1719975715883,0.28324,61415.0,61414.0,0.1742988]